[Event "Titled Tuesday Blitz July 25 Early 2023"]
[White "Zavgorodniy, Sergiy"]
[Black "Lobanov, Sergei"]
[WhiteFideId "14110148"]
[BlackFideId "24183750"]
[WhiteElo "2572"]
[BlackElo "2781"]
[Result "1-0"]
[Round "7"]
[TimeControl "180+2"]
[Date "2023.07.25"]
[WhiteClock "0:00:03"]
[BlackClock "0:00:00"]
[Board "51"]

1. e4 {[%clk 0:02:56]}  e5 {[%clk 0:03:00]} 2. Nf3 {[%clk 0:02:54]}  Nc6 {[%clk 0:03:00]} 3. d3 {[%clk 0:02:52]}  Nf6 {[%clk 0:02:59]} 4. Be2 {[%clk 0:02:50]}  d5 {[%clk 0:02:58]} 5. exd5 {[%clk 0:02:49]}  Nxd5 {[%clk 0:02:59]} 6. O-O {[%clk 0:02:50]}  Be7 {[%clk 0:02:54]} 7. Re1 {[%clk 0:02:50]}  O-O {[%clk 0:02:54]} 8. c4 {[%clk 0:02:51]}  Nb6 {[%clk 0:02:48]} 9. a4 {[%clk 0:02:50]}  a5 {[%clk 0:02:48]} 10. Nc3 {[%clk 0:02:49]}  Bf5 {[%clk 0:02:38]} 11. Be3 {[%clk 0:02:47]}  Bf6 {[%clk 0:01:59]} 12. Qb3 {[%clk 0:02:35]}  Nd4 {[%clk 0:01:53]} 13. Bxd4 {[%clk 0:02:24]}  exd4 {[%clk 0:01:54]} 14. Nd5 {[%clk 0:02:19]}  Nxd5 {[%clk 0:01:51]} 15. cxd5 {[%clk 0:02:19]}  b6 {[%clk 0:01:44]} 16. Nd2 {[%clk 0:02:16]}  Be7 {[%clk 0:01:39]} 17. Ne4 {[%clk 0:02:04]}  Bb4 {[%clk 0:01:38]} 18. Red1 {[%clk 0:02:02]}  Qd7 {[%clk 0:01:36]} 19. Bf3 {[%clk 0:02:00]}  Qe7 {[%clk 0:01:22]} 20. Rac1 {[%clk 0:01:58]}  Rad8 {[%clk 0:01:22]} 21. Rc6 {[%clk 0:01:56]}  Rd7 {[%clk 0:01:17]} 22. Rdc1 {[%clk 0:01:55]}  Qe5 {[%clk 0:01:14]} 23. g3 {[%clk 0:01:39]}  h5 {[%clk 0:01:05]} 24. Qc4 {[%clk 0:01:38]}  Bxe4 {[%clk 0:01:04]} 25. dxe4 {[%clk 0:01:21]}  Bd6 {[%clk 0:00:52]} 26. Rd1 {[%clk 0:01:17]}  f5 {[%clk 0:00:50]} 27. Qxd4 {[%clk 0:01:12]}  Qxd4 {[%clk 0:00:42]} 28. Rxd4 {[%clk 0:01:11]}  fxe4 {[%clk 0:00:43]} 29. Bxe4 {[%clk 0:01:10]}  Bc5 {[%clk 0:00:43]} 30. Rd2 {[%clk 0:01:04]}  Rdf7 {[%clk 0:00:43]} 31. Bg6 {[%clk 0:00:39]}  Rxf2 {[%clk 0:00:42]} 32. Rxf2 {[%clk 0:00:38]}  Bxf2+ {[%clk 0:00:39]} 33. Kg2 {[%clk 0:00:38]}  Bc5 {[%clk 0:00:32]} 34. Rxc7 {[%clk 0:00:37]}  Rf2+ {[%clk 0:00:21]} 35. Kh3 {[%clk 0:00:37]}  Kf8 {[%clk 0:00:22]} 36. Bxh5 {[%clk 0:00:20]}  Rxb2 {[%clk 0:00:20]} 37. Rf7+ {[%clk 0:00:20]}  Kg8 {[%clk 0:00:21]} 38. Rd7 {[%clk 0:00:18]}  Kh7 {[%clk 0:00:19]} 39. Bf3 {[%clk 0:00:15]}  Rd2 {[%clk 0:00:17]} 40. Be4+ {[%clk 0:00:14]}  Kh6 {[%clk 0:00:16]} 41. Rd8 {[%clk 0:00:11]}  Kg5 {[%clk 0:00:16]} 42. Re8 {[%clk 0:00:08]}  Bg1 {[%clk 0:00:05]} 43. Re5+ {[%clk 0:00:08]}  Kh6 {[%clk 0:00:05]} 44. Re6+ {[%clk 0:00:09]}  g6 {[%clk 0:00:01]} 45. Rxg6+ {[%clk 0:00:08]}  Kh7 {[%clk 0:00:02]} 46. Kg4 {[%clk 0:00:05]}  Bxh2 {[%clk 0:00:00]} 47. Rxb6+ {[%clk 0:00:03]} 1-0


[Site "https://www.chess.com"]

[Event "Titled Tuesday Blitz July 25 Early 2023"]
[White "Schnaider, Ilan"]
[Black "ATM622"]
[WhiteFideId "169013"]
[WhiteElo "2765"]
[BlackElo "2525"]
[Result "0-1"]
[Round "7"]
[TimeControl "180+2"]
[Date "2023.07.25"]
[WhiteClock "0:00:04"]
[BlackClock "0:00:06"]
[Board "54"]

1. e4 {[%clk 0:03:00]}  c6 {[%clk 0:02:59]} 2. Nf3 {[%clk 0:03:01]}  d5 {[%clk 0:02:59]} 3. Nc3 {[%clk 0:03:01]}  dxe4 {[%clk 0:02:58]} 4. Nxe4 {[%clk 0:03:02]}  Nf6 {[%clk 0:02:57]} 5. Qe2 {[%clk 0:03:03]}  Nxe4 {[%clk 0:02:56]} 6. Qxe4 {[%clk 0:03:04]}  g6 {[%clk 0:02:54]} 7. Bc4 {[%clk 0:03:00]}  Bg7 {[%clk 0:02:54]} 8. d3 {[%clk 0:02:40]}  O-O {[%clk 0:02:52]} 9. O-O {[%clk 0:02:40]}  Nd7 {[%clk 0:02:46]} 10. Qh4 {[%clk 0:02:38]}  Nf6 {[%clk 0:02:37]} 11. Bh6 {[%clk 0:02:37]}  Bg4 {[%clk 0:02:26]} 12. Ne5 {[%clk 0:02:32]}  Bf5 {[%clk 0:02:16]} 13. Rae1 {[%clk 0:02:26]}  Qc7 {[%clk 0:02:03]} 14. Bf4 {[%clk 0:01:59]}  Qb6 {[%clk 0:01:52]} 15. g4 {[%clk 0:01:44]}  Bc8 {[%clk 0:01:48]} 16. Be3 {[%clk 0:01:08]}  Qxb2 {[%clk 0:01:40]} 17. Bc5 {[%clk 0:01:07]}  Be6 {[%clk 0:01:28]} 18. Bxe7 {[%clk 0:00:59]}  Nd5 {[%clk 0:01:21]} 19. Bxf8 {[%clk 0:00:56]}  Bxe5 {[%clk 0:01:07]} 20. Bc5 {[%clk 0:00:48]}  Bf6 {[%clk 0:00:56]} 21. Qg3 {[%clk 0:00:45]}  Qxc2 {[%clk 0:00:44]} 22. f4 {[%clk 0:00:35]}  Kh8 {[%clk 0:00:21]} 23. Rf2 {[%clk 0:00:32]}  Qc3 {[%clk 0:00:18]} 24. Kh1 {[%clk 0:00:23]}  Qxe1+ {[%clk 0:00:16]} 25. Kg2 {[%clk 0:00:22]}  b6 {[%clk 0:00:12]} 26. Bd6 {[%clk 0:00:21]}  Ne3+ {[%clk 0:00:11]} 27. Kf3 {[%clk 0:00:16]}  Bxg4+ {[%clk 0:00:10]} 28. Ke4 {[%clk 0:00:08]}  Nxc4+ {[%clk 0:00:07]} 29. Qe3 {[%clk 0:00:04]}  Qxe3# {[%clk 0:00:06]} 0-1


[Site "https://www.chess.com"]

[Event "Titled Tuesday Blitz July 25 Early 2023"]
[White "Lopez, Henry"]
[Black "Schmakel, Sam"]
[WhiteFideId "5203830"]
[BlackFideId "2039311"]
[WhiteElo "2494"]
[BlackElo "2743"]
[Result "0-1"]
[Round "7"]
[TimeControl "180+2"]
[Date "2023.07.25"]
[WhiteClock "0:00:41"]
[BlackClock "0:01:01"]
[Board "58"]

1. d4 {[%clk 0:03:00]}  d5 {[%clk 0:02:58]} 2. Nf3 {[%clk 0:02:55]}  e6 {[%clk 0:02:57]} 3. c4 {[%clk 0:02:52]}  c6 {[%clk 0:02:57]} 4. Nc3 {[%clk 0:02:45]}  dxc4 {[%clk 0:02:57]} 5. a4 {[%clk 0:02:41]}  Bb4 {[%clk 0:02:57]} 6. e3 {[%clk 0:02:40]}  b5 {[%clk 0:02:56]} 7. Bd2 {[%clk 0:02:39]}  a5 {[%clk 0:02:56]} 8. Ne5 {[%clk 0:02:37]}  Nf6 {[%clk 0:02:38]} 9. axb5 {[%clk 0:02:30]}  Bxc3 {[%clk 0:02:38]} 10. Bxc3 {[%clk 0:02:26]}  cxb5 {[%clk 0:02:38]} 11. b3 {[%clk 0:02:23]}  Bb7 {[%clk 0:02:36]} 12. bxc4 {[%clk 0:02:19]}  b4 {[%clk 0:02:37]} 13. Qa4+ {[%clk 0:02:17]}  Nbd7 {[%clk 0:02:32]} 14. Bb2 {[%clk 0:02:13]}  O-O {[%clk 0:02:29]} 15. Nxd7 {[%clk 0:02:02]}  Nxd7 {[%clk 0:02:29]} 16. c5 {[%clk 0:02:00]}  Qc7 {[%clk 0:02:28]} 17. f3 {[%clk 0:01:59]}  Bc6 {[%clk 0:02:03]} 18. Bb5 {[%clk 0:01:48]}  Bxb5 {[%clk 0:02:03]} 19. Qxb5 {[%clk 0:01:47]}  Rfb8 {[%clk 0:02:03]} 20. Qa4 {[%clk 0:01:47]}  e5 {[%clk 0:02:01]} 21. O-O {[%clk 0:01:46]}  exd4 {[%clk 0:02:01]} 22. exd4 {[%clk 0:01:46]}  Nf6 {[%clk 0:02:02]} 23. Qb3 {[%clk 0:01:42]}  Qc6 {[%clk 0:02:01]} 24. Ra4 {[%clk 0:01:38]}  Qd5 {[%clk 0:01:53]} 25. Qxd5 {[%clk 0:01:35]}  Nxd5 {[%clk 0:01:54]} 26. Rfa1 {[%clk 0:01:35]}  Rb5 {[%clk 0:01:54]} 27. Kf2 {[%clk 0:01:34]}  Kf8 {[%clk 0:01:35]} 28. g3 {[%clk 0:01:31]}  Ke7 {[%clk 0:01:34]} 29. Ke2 {[%clk 0:01:30]}  Kd7 {[%clk 0:01:35]} 30. Kd3 {[%clk 0:01:30]}  Kc6 {[%clk 0:01:34]} 31. Re1 {[%clk 0:01:28]}  Rbb8 {[%clk 0:01:12]} 32. Kc4 {[%clk 0:01:28]}  h5 {[%clk 0:01:12]} 33. Re5 {[%clk 0:01:25]}  Rd8 {[%clk 0:01:09]} 34. Rxh5 {[%clk 0:01:24]}  Ne3+ {[%clk 0:01:07]} 35. Kd3 {[%clk 0:01:22]}  Nd1 {[%clk 0:01:07]} 36. Bc1 {[%clk 0:01:08]}  b3 {[%clk 0:01:04]} 37. Kd2 {[%clk 0:00:41]}  b2 {[%clk 0:01:01]} 0-1


[Site "https://www.chess.com"]

[Event "Titled Tuesday Blitz July 25 Early 2023"]
[White "Bryakin, Mikhail"]
[Black "Tomaszewski, Kacper"]
[WhiteFideId "4165314"]
[BlackFideId "1127373"]
[WhiteElo "2741"]
[BlackElo "2480"]
[Result "0-1"]
[Round "7"]
[TimeControl "180+2"]
[Date "2023.07.25"]
[WhiteClock "0:00:39"]
[BlackClock "0:00:40"]
[Board "59"]

1. e4 {[%clk 0:03:00]}  e5 {[%clk 0:02:59]} 2. d4 {[%clk 0:03:00]}  exd4 {[%clk 0:02:57]} 3. Qxd4 {[%clk 0:03:01]}  Nc6 {[%clk 0:02:56]} 4. Qd3 {[%clk 0:03:02]}  Bb4+ {[%clk 0:02:51]} 5. Nc3 {[%clk 0:03:02]}  Nge7 {[%clk 0:02:50]} 6. Ne2 {[%clk 0:03:02]}  O-O {[%clk 0:02:50]} 7. a3 {[%clk 0:03:00]}  Ba5 {[%clk 0:02:49]} 8. Bg5 {[%clk 0:02:58]}  f6 {[%clk 0:02:47]} 9. Bh4 {[%clk 0:02:53]}  d5 {[%clk 0:02:46]} 10. b4 {[%clk 0:02:42]}  Ne5 {[%clk 0:02:34]} 11. Qg3 {[%clk 0:02:28]}  Bb6 {[%clk 0:02:20]} 12. O-O-O {[%clk 0:02:24]}  d4 {[%clk 0:02:11]} 13. Na4 {[%clk 0:02:22]}  d3 {[%clk 0:01:58]} 14. Nec3 {[%clk 0:02:13]}  Bg4 {[%clk 0:01:50]} 15. f3 {[%clk 0:02:05]}  Be3+ {[%clk 0:01:47]} 16. Kb1 {[%clk 0:02:05]}  Be6 {[%clk 0:01:37]} 17. f4 {[%clk 0:01:51]}  Nc4 {[%clk 0:01:25]} 18. Bxd3 {[%clk 0:01:51]}  Nxa3+ {[%clk 0:01:13]} 19. Kb2 {[%clk 0:01:51]}  Qd4 {[%clk 0:00:57]} 20. Kxa3 {[%clk 0:01:42]}  a5 {[%clk 0:00:56]} 21. Rb1 {[%clk 0:00:44]}  axb4+ {[%clk 0:00:46]} 22. Rxb4 {[%clk 0:00:41]}  Qxc3+ {[%clk 0:00:46]} 23. Rb3 {[%clk 0:00:39]}  Bc5+ {[%clk 0:00:40]} 0-1


[Site "https://www.chess.com"]

[Event "Titled Tuesday Blitz July 25 Early 2023"]
[White "Fantastic_Power"]
[Black "Liu, Casper"]
[BlackFideId "1454153"]
[WhiteElo "2738"]
[BlackElo "2476"]
[Result "1-0"]
[Round "7"]
[TimeControl "180+2"]
[Date "2023.07.25"]
[WhiteClock "0:00:13"]
[BlackClock "0:00:00"]
[Board "60"]

1. d4 {[%clk 0:02:47]}  Nf6 {[%clk 0:02:59]} 2. c4 {[%clk 0:02:46]}  g6 {[%clk 0:03:00]} 3. Nc3 {[%clk 0:02:46]}  Bg7 {[%clk 0:03:01]} 4. e4 {[%clk 0:02:46]}  O-O {[%clk 0:03:02]} 5. Nf3 {[%clk 0:02:44]}  d6 {[%clk 0:03:02]} 6. Be2 {[%clk 0:02:44]}  Bg4 {[%clk 0:03:01]} 7. O-O {[%clk 0:02:44]}  Nc6 {[%clk 0:03:01]} 8. Be3 {[%clk 0:02:43]}  Nd7 {[%clk 0:03:00]} 9. d5 {[%clk 0:02:36]}  Bxf3 {[%clk 0:03:00]} 10. Bxf3 {[%clk 0:02:36]}  Nce5 {[%clk 0:03:00]} 11. Be2 {[%clk 0:02:36]}  Nb6 {[%clk 0:02:50]} 12. Qb3 {[%clk 0:02:19]}  f5 {[%clk 0:02:42]} 13. f4 {[%clk 0:02:19]}  Ned7 {[%clk 0:02:36]} 14. Qc2 {[%clk 0:02:16]}  Qe8 {[%clk 0:02:27]} 15. b4 {[%clk 0:02:13]}  fxe4 {[%clk 0:02:25]} 16. Rae1 {[%clk 0:02:11]}  e6 {[%clk 0:02:23]} 17. Nxe4 {[%clk 0:02:07]}  exd5 {[%clk 0:02:21]} 18. cxd5 {[%clk 0:02:08]}  Nxd5 {[%clk 0:02:18]} 19. Bc4 {[%clk 0:02:08]}  c6 {[%clk 0:02:08]} 20. Nxd6 {[%clk 0:02:05]}  Qe7 {[%clk 0:01:44]} 21. Bc5 {[%clk 0:01:48]}  Qh4 {[%clk 0:01:44]} 22. g3 {[%clk 0:01:43]}  Qh5 {[%clk 0:01:44]} 23. Nxb7 {[%clk 0:01:32]}  Nxc5 {[%clk 0:01:40]} 24. Nxc5 {[%clk 0:01:33]}  Bd4+ {[%clk 0:01:18]} 25. Kh1 {[%clk 0:01:24]}  Rfe8 {[%clk 0:00:51]} 26. Ne6 {[%clk 0:01:22]}  Bb6 {[%clk 0:00:45]} 27. b5 {[%clk 0:01:20]}  cxb5 {[%clk 0:00:39]} 28. Be2 {[%clk 0:00:49]}  Ne3 {[%clk 0:00:26]} 29. Qb3 {[%clk 0:00:40]}  Qf5 {[%clk 0:00:07]} 30. Ng5+ {[%clk 0:00:19]}  Kg7 {[%clk 0:00:06]} 31. Bd3 {[%clk 0:00:15]}  Qc5 {[%clk 0:00:03]} 32. Rc1 {[%clk 0:00:12]}  Qd6 {[%clk 0:00:00]} 33. Qf7+ {[%clk 0:00:13]} 1-0


[Site "https://www.chess.com"]

[Event "Titled Tuesday Blitz July 25 Early 2023"]
[White "Cheer_Down"]
[Black "Skvortsov, Andrei"]
[BlackFideId "24108600"]
[WhiteElo "2448"]
[BlackElo "2737"]
[Result "0-1"]
[Round "7"]
[TimeControl "180+2"]
[Date "2023.07.25"]
[WhiteClock "0:00:00"]
[BlackClock "0:00:04"]
[Board "61"]

1. e4 {[%clk 0:02:57]}  d5 {[%clk 0:03:00]} 2. exd5 {[%clk 0:02:56]}  Qxd5 {[%clk 0:03:01]} 3. Nc3 {[%clk 0:02:56]}  Qe5+ {[%clk 0:03:01]} 4. Qe2 {[%clk 0:02:55]}  Nc6 {[%clk 0:03:00]} 5. Nf3 {[%clk 0:02:54]}  Qxe2+ {[%clk 0:02:59]} 6. Bxe2 {[%clk 0:02:54]}  Nb4 {[%clk 0:03:00]} 7. Bd1 {[%clk 0:02:52]}  c6 {[%clk 0:03:00]} 8. a3 {[%clk 0:02:52]}  Nd5 {[%clk 0:03:00]} 9. Nxd5 {[%clk 0:02:47]}  cxd5 {[%clk 0:03:01]} 10. d4 {[%clk 0:02:47]}  Bf5 {[%clk 0:02:59]} 11. Bf4 {[%clk 0:02:46]}  f6 {[%clk 0:02:52]} 12. c3 {[%clk 0:02:43]}  Bd7 {[%clk 0:02:50]} 13. Bb3 {[%clk 0:02:40]}  e6 {[%clk 0:02:50]} 14. O-O {[%clk 0:02:37]}  Ne7 {[%clk 0:02:49]} 15. Rfe1 {[%clk 0:02:36]}  Kf7 {[%clk 0:02:50]} 16. Rac1 {[%clk 0:02:18]}  Rc8 {[%clk 0:02:46]} 17. c4 {[%clk 0:02:14]}  dxc4 {[%clk 0:02:35]} 18. Bxc4 {[%clk 0:02:11]}  Nd5 {[%clk 0:02:35]} 19. Bg3 {[%clk 0:02:07]}  Be7 {[%clk 0:02:33]} 20. Nd2 {[%clk 0:02:06]}  Nb6 {[%clk 0:02:30]} 21. Bb3 {[%clk 0:02:04]}  Rxc1 {[%clk 0:02:29]} 22. Rxc1 {[%clk 0:02:03]}  Rc8 {[%clk 0:02:30]} 23. Rxc8 {[%clk 0:02:01]}  Bxc8 {[%clk 0:02:31]} 24. Ne4 {[%clk 0:02:00]}  Bd7 {[%clk 0:02:22]} 25. Nc5 {[%clk 0:01:54]}  Bc8 {[%clk 0:02:16]} 26. Bb8 {[%clk 0:01:35]}  a6 {[%clk 0:02:15]} 27. Kf1 {[%clk 0:01:27]}  Nd5 {[%clk 0:02:12]} 28. Bc4 {[%clk 0:01:22]}  Ke8 {[%clk 0:01:51]} 29. Ke2 {[%clk 0:01:16]}  b5 {[%clk 0:01:28]} 30. Ba2 {[%clk 0:01:15]}  g5 {[%clk 0:01:16]} 31. g3 {[%clk 0:01:12]}  Kf7 {[%clk 0:01:16]} 32. Kd3 {[%clk 0:01:12]}  Nb6 {[%clk 0:01:11]} 33. Bc7 {[%clk 0:01:07]}  Nd5 {[%clk 0:01:09]} 34. Bb8 {[%clk 0:01:07]}  f5 {[%clk 0:01:07]} 35. Be5 {[%clk 0:01:01]}  Kg6 {[%clk 0:01:03]} 36. b4 {[%clk 0:00:59]}  h5 {[%clk 0:01:00]} 37. Bxd5 {[%clk 0:00:54]}  exd5 {[%clk 0:01:00]} 38. f4 {[%clk 0:00:54]}  h4 {[%clk 0:00:59]} 39. Ke3 {[%clk 0:00:49]}  gxf4+ {[%clk 0:00:49]} 40. Bxf4 {[%clk 0:00:47]}  Kh5 {[%clk 0:00:48]} 41. Nd3 {[%clk 0:00:43]}  hxg3 {[%clk 0:00:45]} 42. hxg3 {[%clk 0:00:42]}  Bd8 {[%clk 0:00:33]} 43. Kf3 {[%clk 0:00:42]}  a5 {[%clk 0:00:32]} 44. Bd6 {[%clk 0:00:37]}  axb4 {[%clk 0:00:30]} 45. axb4 {[%clk 0:00:37]}  Kg5 {[%clk 0:00:30]} 46. Nf4 {[%clk 0:00:35]}  Bf6 {[%clk 0:00:25]} 47. Ke3 {[%clk 0:00:34]}  Bb7 {[%clk 0:00:25]} 48. Ne6+ {[%clk 0:00:29]}  Kg4 {[%clk 0:00:24]} 49. Bf4 {[%clk 0:00:25]}  Be7 {[%clk 0:00:17]} 50. Nc5 {[%clk 0:00:25]}  Bc8 {[%clk 0:00:17]} 51. Nd3 {[%clk 0:00:25]}  Be6 {[%clk 0:00:15]} 52. Bc7 {[%clk 0:00:21]}  Bg5+ {[%clk 0:00:14]} 53. Bf4 {[%clk 0:00:20]}  Be7 {[%clk 0:00:14]} 54. Kf2 {[%clk 0:00:17]}  Bg8 {[%clk 0:00:10]} 55. Be5 {[%clk 0:00:16]}  Kg5 {[%clk 0:00:09]} 56. Ke3 {[%clk 0:00:16]}  Bf7 {[%clk 0:00:10]} 57. Bc7 {[%clk 0:00:15]}  Be8 {[%clk 0:00:09]} 58. Ba5 {[%clk 0:00:14]}  Kg4 {[%clk 0:00:09]} 59. Kf2 {[%clk 0:00:09]}  Bd6 {[%clk 0:00:09]} 60. Ne5+ {[%clk 0:00:08]}  Kh3 {[%clk 0:00:09]} 61. Kf3 {[%clk 0:00:08]}  Bh5+ {[%clk 0:00:04]} 62. Kf4 {[%clk 0:00:07]}  Bg4 {[%clk 0:00:04]} 63. Kg5 {[%clk 0:00:00]}  Kxg3 {[%clk 0:00:04]} 0-1


[Site "https://www.chess.com"]

[Event "Titled Tuesday Blitz July 25 Early 2023"]
[White "Williams, Simon K"]
[Black "Zhigalko, Sergei"]
[WhiteFideId "404454"]
[BlackFideId "13502956"]
[WhiteElo "2716"]
[BlackElo "2874"]
[Result "1-0"]
[Round "7"]
[TimeControl "180+2"]
[Date "2023.07.25"]
[WhiteClock "0:00:13"]
[BlackClock "0:00:03"]
[Board "65"]

1. d4 {[%clk 0:03:00]}  Nf6 {[%clk 0:02:59]} 2. c4 {[%clk 0:02:57]}  e6 {[%clk 0:03:00]} 3. Nf3 {[%clk 0:02:57]}  b6 {[%clk 0:03:00]} 4. g3 {[%clk 0:02:56]}  Ba6 {[%clk 0:02:58]} 5. Qc2 {[%clk 0:02:56]}  Bb4+ {[%clk 0:02:58]} 6. Bd2 {[%clk 0:02:56]}  Be7 {[%clk 0:02:58]} 7. e4 {[%clk 0:02:55]}  d5 {[%clk 0:02:58]} 8. cxd5 {[%clk 0:02:55]}  Bxf1 {[%clk 0:02:59]} 9. Kxf1 {[%clk 0:02:55]}  exd5 {[%clk 0:02:56]} 10. e5 {[%clk 0:02:55]}  Ne4 {[%clk 0:02:56]} 11. Nc3 {[%clk 0:02:54]}  Nxd2+ {[%clk 0:02:57]} 12. Qxd2 {[%clk 0:02:53]}  Qd7 {[%clk 0:02:57]} 13. Kg2 {[%clk 0:02:52]}  Nc6 {[%clk 0:02:56]} 14. Rac1 {[%clk 0:02:45]}  Nd8 {[%clk 0:02:53]} 15. Ne1 {[%clk 0:02:37]}  Ne6 {[%clk 0:02:48]} 16. f4 {[%clk 0:02:36]}  f5 {[%clk 0:02:39]} 17. exf6 {[%clk 0:02:33]}  Bxf6 {[%clk 0:02:40]} 18. Nf3 {[%clk 0:02:31]}  O-O {[%clk 0:02:40]} 19. Rhe1 {[%clk 0:02:28]}  c5 {[%clk 0:01:52]} 20. dxc5 {[%clk 0:02:25]}  Bxc3 {[%clk 0:01:52]} 21. Rxc3 {[%clk 0:02:11]}  bxc5 {[%clk 0:01:49]} 22. Rce3 {[%clk 0:02:11]}  Rae8 {[%clk 0:01:30]} 23. Re5 {[%clk 0:02:06]}  d4 {[%clk 0:01:02]} 24. Qd3 {[%clk 0:01:48]}  Kh8 {[%clk 0:00:42]} 25. Qe4 {[%clk 0:01:33]}  Nc7 {[%clk 0:00:25]} 26. Ng5 {[%clk 0:01:32]}  g6 {[%clk 0:00:25]} 27. h4 {[%clk 0:01:28]}  d3 {[%clk 0:00:12]} 28. Rd1 {[%clk 0:01:27]}  d2 {[%clk 0:00:03]} 29. h5 {[%clk 0:01:22]}  gxh5 {[%clk 0:00:01]} 30. Nf3 {[%clk 0:01:16]}  Rxe5 {[%clk 0:00:01]} 31. Qxe5+ {[%clk 0:01:16]}  Qg7 {[%clk 0:00:01]} 32. Qxc5 {[%clk 0:01:14]}  h4 {[%clk 0:00:01]} 33. Nxh4 {[%clk 0:01:12]}  Ne6 {[%clk 0:00:02]} 34. Qc3 {[%clk 0:01:01]}  Nxf4+ {[%clk 0:00:02]} 35. Kh2 {[%clk 0:01:00]}  Qxc3 {[%clk 0:00:02]} 36. bxc3 {[%clk 0:01:01]}  Ne2 {[%clk 0:00:02]} 37. Rxd2 {[%clk 0:00:59]}  Nxc3 {[%clk 0:00:03]} 38. Rc2 {[%clk 0:00:57]}  Nd5 {[%clk 0:00:03]} 39. Rc5 {[%clk 0:00:52]}  Ne3 {[%clk 0:00:03]} 40. Rc7 {[%clk 0:00:51]}  Rf2+ {[%clk 0:00:01]} 41. Kh3 {[%clk 0:00:51]}  Rxa2 {[%clk 0:00:02]} 42. Re7 {[%clk 0:00:49]}  Ra3 {[%clk 0:00:02]} 43. Kh2 {[%clk 0:00:28]}  Kg8 {[%clk 0:00:02]} 44. Kg1 {[%clk 0:00:25]}  Ng4 {[%clk 0:00:01]} 45. Kg2 {[%clk 0:00:23]}  Ra2+ {[%clk 0:00:01]} 46. Kf3 {[%clk 0:00:23]}  Nh6 {[%clk 0:00:01]} 47. Kf4 {[%clk 0:00:20]}  Ra5 {[%clk 0:00:02]} 48. Rb7 {[%clk 0:00:18]}  Kh8 {[%clk 0:00:01]} 49. Nf3 {[%clk 0:00:17]}  Kg8 {[%clk 0:00:01]} 50. Ne5 {[%clk 0:00:17]}  Ra4+ {[%clk 0:00:01]} 51. Kg5 {[%clk 0:00:17]}  Ra5 {[%clk 0:00:01]} 52. Kf6 {[%clk 0:00:17]}  Kh8 {[%clk 0:00:01]} 53. Rb8+ {[%clk 0:00:16]}  Ng8+ {[%clk 0:00:02]} 54. Ke6 {[%clk 0:00:14]}  h6 {[%clk 0:00:02]} 55. Rb7 {[%clk 0:00:14]}  Ra6+ {[%clk 0:00:02]} 56. Kf5 {[%clk 0:00:15]}  Ra5 {[%clk 0:00:02]} 57. Ke6 {[%clk 0:00:14]}  Ra6+ {[%clk 0:00:02]} 58. Kf5 {[%clk 0:00:15]}  Rf6+ {[%clk 0:00:03]} 59. Ke4 {[%clk 0:00:14]}  a6 {[%clk 0:00:03]} 60. Ra7 {[%clk 0:00:15]}  Re6 {[%clk 0:00:03]} 61. Kf5 {[%clk 0:00:15]}  Rf6+ {[%clk 0:00:03]} 62. Ke4 {[%clk 0:00:15]}  Rb6 {[%clk 0:00:04]} 63. Kf5 {[%clk 0:00:15]}  Rf6+ {[%clk 0:00:02]} 64. Kg4 {[%clk 0:00:15]}  h5+ {[%clk 0:00:02]} 65. Kxh5 {[%clk 0:00:14]}  Rf5+ {[%clk 0:00:02]} 66. Kg6 {[%clk 0:00:14]}  Rxe5 {[%clk 0:00:03]} 67. Rh7# {[%clk 0:00:13]} 1-0


[Site "https://www.chess.com"]

[Event "Titled Tuesday Blitz July 25 Early 2023"]
[White "Nazari, Arad"]
[Black "Hansch, Karsten"]
[WhiteFideId "12577324"]
[BlackFideId "24692239"]
[WhiteElo "2770"]
[BlackElo "2553"]
[Result "1-0"]
[Round "7"]
[TimeControl "180+2"]
[Date "2023.07.25"]
[WhiteClock "0:00:14"]
[BlackClock "0:00:00"]
[Board "70"]

1. e4 {[%clk 0:03:00]}  c6 {[%clk 0:02:59]} 2. Nf3 {[%clk 0:03:00]}  d5 {[%clk 0:03:00]} 3. Nc3 {[%clk 0:03:01]}  dxe4 {[%clk 0:03:00]} 4. Nxe4 {[%clk 0:03:02]}  Nf6 {[%clk 0:03:01]} 5. Qe2 {[%clk 0:03:01]}  Nxe4 {[%clk 0:02:57]} 6. Qxe4 {[%clk 0:03:02]}  Nd7 {[%clk 0:02:56]} 7. Bc4 {[%clk 0:03:02]}  Nf6 {[%clk 0:02:55]} 8. Ne5 {[%clk 0:03:03]}  e6 {[%clk 0:02:54]} 9. Qe2 {[%clk 0:03:03]}  Be7 {[%clk 0:02:53]} 10. O-O {[%clk 0:02:56]}  O-O {[%clk 0:02:52]} 11. c3 {[%clk 0:02:57]}  c5 {[%clk 0:02:49]} 12. Rd1 {[%clk 0:02:51]}  Qc7 {[%clk 0:02:48]} 13. d4 {[%clk 0:02:39]}  cxd4 {[%clk 0:02:22]} 14. cxd4 {[%clk 0:02:40]}  Nd5 {[%clk 0:02:22]} 15. Qf3 {[%clk 0:02:20]}  Bf6 {[%clk 0:01:26]} 16. Bxd5 {[%clk 0:02:07]}  Bxe5 {[%clk 0:01:25]} 17. dxe5 {[%clk 0:01:40]}  exd5 {[%clk 0:01:25]} 18. Rxd5 {[%clk 0:01:33]}  Be6 {[%clk 0:01:24]} 19. Rd6 {[%clk 0:01:33]}  Bxa2 {[%clk 0:01:02]} 20. Qg3 {[%clk 0:01:25]}  Rfc8 {[%clk 0:00:31]} 21. Bh6 {[%clk 0:01:05]}  g6 {[%clk 0:00:31]} 22. h4 {[%clk 0:01:04]}  Be6 {[%clk 0:00:28]} 23. Bg5 {[%clk 0:01:05]}  Qc2 {[%clk 0:00:21]} 24. Bf6 {[%clk 0:01:00]}  Qe2 {[%clk 0:00:14]} 25. Rad1 {[%clk 0:00:55]}  h5 {[%clk 0:00:09]} 26. Qf4 {[%clk 0:00:48]}  Kh7 {[%clk 0:00:09]} 27. R1d2 {[%clk 0:00:41]}  Qc4 {[%clk 0:00:04]} 28. R6d4 {[%clk 0:00:20]}  Qc1+ {[%clk 0:00:03]} 29. Kh2 {[%clk 0:00:20]}  a5 {[%clk 0:00:04]} 30. Rd6 {[%clk 0:00:18]}  Qc4 {[%clk 0:00:01]} 31. R2d4 {[%clk 0:00:18]}  Qc5 {[%clk 0:00:02]} 32. Rxe6 {[%clk 0:00:17]}  fxe6 {[%clk 0:00:02]} 33. Rd7+ {[%clk 0:00:18]}  Kg8 {[%clk 0:00:00]} 34. Qh6 {[%clk 0:00:14]} 1-0


[Site "https://www.chess.com"]